[Event "FIDE WCCC U12 2018"]
[Site "Santiago de Compostela"]
[Date "2018.11.10"]
[Round "6"]
[White "Zhakshylykov, Erzhan"]
[Black "Stalmach, Richard"]
[Result "1/2-1/2"]
[ECO "B22"]
[WhiteElo "1526"]
[BlackElo "2028"]
[Annotator "NA"]
[PlyCount "68"]
[EventDate "2018.11.04"]
[EventType "swiss"]
[EventCountry "ESP"]
[SourceTitle "playchess.com"]
[Source "ChessBase"]
[SourceQuality "1"]
[TimeControl "40/5400+30:1800+30"]

1. e4 {[%emt 0:00:00]} c5 {[%emt 0:00:00]} 2. c3 {[%emt 0:00:00]} Nf6 {[%emt 0:00:00]} 3. e5 {[%emt 0:00:00]} Nd5 {[%emt 0:00:00]} 4. d4 {[%emt 0:00:11]} cxd4 {[%emt 0:00:00]} 5. cxd4 {[%emt 0:00:24]} Nc6 {[%emt 0:00:38]} 6. Nf3 {[%emt 0:00:10]} d6 {[%emt 0:00:29]} 7. Bc4 {[%emt 0:00:10]} e6 {[%emt 0:00:04]} 8. O-O {[%emt 0:00:34]} Be7 {[%emt 0:00:07]} 9. Qe2 {[%emt 0:00:36]} O-O {[%emt 0:01:10]} 10. Nc3 {[%emt 0:00:31]} Nxc3 {[%emt 0:01:33]} 11. bxc3 {[%emt 0:00:10]} dxe5 {[%emt 0:02:55]} 12. dxe5 {[%emt 0:01:08]} b6 {[%emt 0:00:47]} 13. Rd1 {[%emt 0:02:01]} Qc7 {[%emt 0:00:10]} 14. Bd3 {[%emt 0:02:13]} Bb7 {[%emt 0:02:51]} 15. Qe4 {[%emt 0:01:31]} g6 {[%emt 0:00:52]} 16. Bh6 {[%emt 0:05:16]} Rfd8 {[%emt 0:00:41]} 17. Qf4 {[%emt 0:04:33]} Rd5 {[%emt 0:14:53]} 18. Be4 {[%emt 0:11:16]} Rc5 {[%emt 0:02:14]} 19. Rd3 {[%emt 0:11:47]} Rd8 {[%emt 0:08:06]} 20. Rxd8+ {[%emt 0:18:33]} Nxd8 {[%emt 0:08:33]} 21. Bxb7 {[%emt 0:01:17]} Nxb7 {[%emt 0:02:34]} 22. Qa4 {[%emt 0:02:35]} Bf8 {[%emt 0:07:04]} 23. Bxf8 {[%emt 0:08:26]} Kxf8 {[%emt 0:00:07]} 24. Rd1 {[%emt 0:01:50]} Rxc3 {[%emt 0:20:04]} 25. Qxa7 {[%emt 0:01:51]} Kg7 {[%emt 0:00:44]} 26. h3 {[%emt 0:01:13]} Rc2 {[%emt 0:00:40]} 27. Rb1 {[%emt 0:02:11]} Qc5 {[%emt 0:08:33]} 28. Qxb6 {[%emt 0:00:45]} Rxa2 {[%emt 0:00:07]} 29. Nd4 {[%emt 0:10:28]} Qxe5 {[%emt 0:08:42]} 30. Nxe6+ {[%emt 0:00:54]} Kh6 {[%emt 0:00:39]} 31. Qxb7 {[%emt 0:05:26]} Qxe6 {[%emt 0:00:09]} 32. Qb4 {[%emt 0:01:57]} Qf6 {[%emt 0:01:21]} 33. Qf8+ {[%emt 0:00:30]} Qg7 {[%emt 0:01:22]} 34. Qc5 {[%emt 0:00:57]} Qf6 {[%emt 0:01:10]} 1/2-1/2

[Event "FIDE WCCC U12 2018"]
[Site "Santiago de Compostela"]
[Date "2018.11.11"]
[Round "7"]
[White "Creanga, Robert-Ionut"]
[Black "Kalosha, Zhiulien Oleksii"]
[Result "1-0"]
[ECO "A65"]
[WhiteElo "2066"]
[BlackElo "1637"]
[Annotator "NA RC"]
[PlyCount "99"]
[EventDate "2018.11.04"]
[EventType "swiss"]
[EventCountry "ESP"]
[SourceTitle "playchess.com"]
[Source "ChessBase"]
[SourceQuality "1"]
[TimeControl "40/5400+30:1800+30"]

{[%evp 11,99,88,53,35,30,13,33,29,32767,32,60,52,43,11,32,9,32767,32767,25,32767,32767,59,54,32767,32767,32767,32767,32767,0,0,43,38,63,5,25,0,31,31,52,22,62,38,75,32767,70,0,40,55,121,124,135,25,185,83,91,100,114,74,97,32767,32767,32767,32767,67,279,272,279,311,132,455,737,32767,856,939,32767,32767,925,32767,1123,1420,1316,1853,29987,429,1537,32767,32767,32767,32767,4680]} 1. d4 {[%emt 0:00:00]} Nf6 {[%emt 0:00:00]} 2. c4 {[%emt 0:00:00]} c5 {[%emt 0:00:00]} 3. d5 {[%emt 0:00:00]} e6 {[%emt 0:00:03]} 4. Nc3 {[%emt 0:00:58]} exd5 {[%emt 0:00:08]} 5. cxd5 {[%emt 0:06:57]} d6 {[%emt 0:00:22]} 6. e4 {[%emt 0:00:36]} g6 {[%emt 0:00:31]} 7. f3 {[%emt 0:01:33]} Bg7 {[%emt 0:02:22]} 8. Nge2 {[%emt 0:05:15]} O-O {[%emt 0:08:10]} 9. Ng3 {[%emt 0:04:43]} a6 {[%emt 0:08:04]} 10. a4 {[%emt 0:04:27]} Re8 {[%emt 0:08:23] A65: Modern Benoni: 6 e4} 11. Be2 {[%emt 0:03:14]} h5 {[%emt 0:27:48]} 12. O-O {[%emt 0:19:49] LiveBook: 8 Games} Nh7 {[%emt 0:28:27]} 13. Nh1 {[%emt 0:10:52]} Bd4+ {[%emt 0:03:40]} 14. Nf2 {[%emt 0:00:13]} Nd7 {[%emt 0:02:45] [#]} 15. Bf4 $146 {[%emt 0:11:59]} ({Predecessor:} 15. Kh1 Qh4 16. Nd3 Ne5 17. Qe1 Qf6 18. Nxe5 Bxe5 19. Bd3 Bd7 {1-0 (36) Vitiugov,N (2734)-Gundavaa,B (2516) Khanty-Mansiysk 2013}) 15... Qf6 {[%emt 0:02:12]} 16. Qd2 {[%emt 0:02:12]} Ne5 {[%emt 0:01:26]} 17. Ncd1 {[%emt 0:08:18]} Bd7 {[%emt 0:01:23]} 18. Be3 {[%emt 0:02:07]} Bxe3 {[%emt 0:01:01]} 19. Nxe3 {[%emt 0:01:07]} b5 {[%emt 0:01:45]} 20. axb5 {[%emt 0:05:56]} Bxb5 {[%emt 0:00:38]} 21. Ra5 {[%emt 0:01:08]} Rab8 {[%emt 0:00:23]} 22. Bxb5 {[%emt 0:02:37]} axb5 {[%emt 0:00:05]} 23. Qe2 {[%emt 0:01:50]} c4 {[%emt 0:00:53]} (23... Nc4 $5 24. Ra2 (24. Nxc4 bxc4 25. Qxc4 Rxb2 $11) 24... Ra8 25. Rxa8 Rxa8 $14) 24. Nc2 {[%emt 0:01:09]} Rec8 {[%emt 0:00:47]} 25. Nb4 {[%emt 0:01:16]} Nf8 {[%emt 0:00:38]} (25... Ra8 $11 26. Rxb5 Rcb8 27. Rxb8+ Rxb8) 26. Nd1 {[%emt 0:01:37]} Qd8 {[%emt 0:00:13]} 27. Ra1 {[%emt 0:01:01]} Qb6+ {[%emt 0:00:23]} 28. Qe3 {[%emt 0:00:29]} Qxe3+ {[%emt 0:00:40]} (28... Qc5 $5 {[%cal Rc5b4]} 29. Na6 Qxe3+ 30. Nxe3 Rb6 $11) 29. Nxe3 {[%emt 0:00:01]} c3 {[%emt 0:00:12] [#]} (29... Ra8 $11 {hält das Gleichgewicht.}) 30. b3 $1 {[%emt 0:00:21]} Kg7 {[%emt 0:01:03]} 31. Ra6 {[%emt 0:00:35]} (31. h3 $16) 31... Ra8 {[%emt 0:00:22]} ({Black should try} 31... Nfd7 $14) 32. Rfa1 {[%emt 0:00:54]} (32. Rxd6 $18 f6 33. Rb1) 32... Rxa6 {[%emt 0:00:31]} 33. Rxa6 {[%emt 0:00:01]} Nfd7 {[%emt 0:00:32]} 34. Rxd6 {[%emt 0:00:55]} Nc5 {[%emt 0:00:15]} 35. f4 {[%emt 0:01:24]} Ng4 {[%emt 0:00:05]} 36. Nxg4 {[%emt 0:00:05]} hxg4 {[%emt 0:00:03]} 37. e5 {[%emt 0:01:00]} Ne4 $2 {[%emt 0:01:38]} (37... Kf8 $16 {might work better.}) 38. Rc6 {[%emt 0:00:09]} Ra8 {[%emt 0:00:01]} 39. Kf1 {[%emt 0:00:46]} Ra1+ {[%emt 0:01:04]} (39... g5 $18 40. fxg5 Re8) 40. Ke2 {[%emt 0:00:00]} Kf8 {[%emt 0:00:00]} (40... g3 $142 41. hxg3 Nxg3+ 42. Kf2 Ne4+ 43. Ke3 f5) 41. d6 {[%emt 0:05:59]} Ra7 {[%emt 0:04:37]} 42. Rc7 {[%emt 0:01:07]} c2 {[%emt 0:02:30]} 43. Nxc2 {[%emt 0:00:52]} Ra8 {[%emt 0:00:36]} 44. Ke3 {[%emt 0:00:17]} g3 {[%emt 0:00:11]} 45. h3 {[%emt 0:01:41]} Nf2 {[%emt 0:00:21]} 46. Nb4 {[%emt 0:00:50]} Ra3 {[%emt 0:02:50]} 47. Rc8+ {[%emt 0:03:49]} (47. d7 $142 Rxb3+ 48. Kd2 Ne4+ 49. Kc2 g5 50. d8=Q+ Kg7 51. Kxb3 gxf4 52. e6) 47... Kg7 {[%emt 0:00:02]} 48. d7 {[%emt 0:00:22]} Rxb3+ {[%emt 0:00:04]} 49. Ke2 {[%emt 0:00:06]} Rb2+ {[%emt 0:00:13]} 50. Rc2 $18 {[%emt 0:00:18]} (50. Nc2 $142 Rxc2+ 51. Rxc2 g5 52. d8=Q Ne4 53. f5 g4 54. Rc8 Nc3+ 55. Kf1 Kh6 56. Qh4+ Kg7 57. Qh8#) 1-0

[Event "FIDE WCCC U12 2018"]
[Site "Santiago de Compostela"]
[Date "2018.11.11"]
[Round "7"]
[White "Stalmach, Richard"]
[Black "Arfan, Aditya Bagus"]
[Result "1-0"]
[ECO "E81"]
[WhiteElo "2028"]
[BlackElo "1841"]
[Annotator "NA RC"]
[PlyCount "135"]
[EventDate "2018.11.04"]
[EventType "swiss"]
[EventCountry "ESP"]
[SourceTitle "playchess.com"]
[Source "ChessBase"]
[SourceQuality "1"]
[TimeControl "40/5400+30:1800+30"]

{[%evp 12,125,32,8,32767,0,51,32767,47,43,45,32,40,32767,19,-16,-5,-70,32767,32767,32767,-63,-89,-89,-49,32767,32767,32767,32767,32767,-90,32767,32767,-164,32767,32767,32767,32767,32767,32767,32767,-51,-52,-56,-39,-60,0,0,0,-10,0,0,0,0,20,54,162,172,207,303,144,160,143,160,372,112,233,8,698,741,668,1098,656,1557,709,32767,32767,2152,6640,2777,1010,5724,6187,7624,5181,0,788,0,1489,29948,6401,1508,12838,6117,808,6099,2578,0,979,0,2500,32767,32767,32767,32767,32767,891,2075,1614,12837,12840,1563,12836,32767,32767,2377]} 1. d4 {[%emt 0:00:00]} Nf6 {[%emt 0:00:00]} 2. c4 {[%emt 0:00:00]} g6 {[%emt 0:00:00]} 3. Nc3 {[%emt 0:00:46]} Bg7 {[%emt 0:00:08]} 4. e4 {[%emt 0:00:11]} d6 {[%emt 0:00:44]} 5. f3 {[%emt 0:00:09]} O-O {[%emt 0:00:30]} 6. Be3 {[%emt 0:00:03]} c5 {[%emt 0:04:52] LiveBook: 1829 Games} 7. Nge2 {[%emt 0:00:21]} Nc6 {[%emt 0:06:55]} 8. Qd2 {[%emt 0:06:46]} ({White should play} 8. d5 $14 Ne5 9. Ng3) 8... Bd7 {[%emt 0:05:29]} 9. O-O-O {[%emt 0:10:28]} cxd4 {[%emt 0:06:17]} 10. Nxd4 {[%emt 0:00:06]} a6 {[%emt 0:11:31]} 11. h4 {[%emt 0:09:37] B38: Sicilian: Maroczy Bind with 5...Bg7 and 7...0-0} (11. Nxc6 Bxc6 12. h4 Qa5 13. Kb1 Rfc8 14. Bg5 b5 15. h5 bxc4 16. hxg6 hxg6 17. Bh6 Bh8 18. Bxc4 Ba4 19. Nxa4 Qxa4 {1-0 (44) Sammour Hasbun,J (2460)-Lee,M (2358) Ledyard 2009}) 11... h5 {[%emt 0:04:57]} 12. Bh6 $146 {[%emt 0:17:37]} ({Predecessor:} 12. Kb1 Nxd4 13. Bxd4 Be6 14. Be3 b5 15. cxb5 axb5 16. Bxb5 Qa5 17. a4 Rfb8 {½-½ (39) Baldwin del Castillo,R-Sanchez Delgado,L (2053) Collado Villalba 2007}) 12... Ne5 {[%emt 0:11:50]} 13. Nd5 {[%emt 0:07:10]} Rc8 {[%emt 0:16:28]} 14. Nxf6+ {[%emt 0:14:40]} exf6 {[%emt 0:13:23]} 15. Bxg7 {[%emt 0:00:08]} Kxg7 {[%emt 0:00:05]} 16. b3 {[%emt 0:00:24] [#]} b5 $1 {[%emt 0:03:58]} 17. f4 {[%emt 0:01:17]} Nc6 {[%emt 0:00:14]} 18. Kb2 {[%emt 0:01:16]} Bg4 {[%emt 0:01:17]} 19. Re1 {[%emt 0:02:07]} Qb6 {[%emt 0:00:36]} 20. Nxc6 {[%emt 0:03:03]} Rxc6 {[%emt 0:00:28]} 21. Qe3 {[%emt 0:01:00]} Qa5 {[%emt 0:04:58]} 22. Bd3 {[%emt 0:01:35]} (22. Rc1 $15) 22... Rb8 {[%emt 0:02:25]} 23. Rc1 {[%emt 0:03:31]} Be6 {[%emt 0:01:10]} 24. cxb5 {[%emt 0:01:54]} Rxc1 {[%emt 0:00:06]} 25. Rxc1 {[%emt 0:00:04]} axb5 {[%emt 0:00:04]} 26. Rc2 {[%emt 0:06:34]} ({But not} 26. f5 Ra8 $17) 26... Ra8 {[%emt 0:00:18]} 27. Kc1 {[%emt 0:00:04]} Qa3+ {[%emt 0:00:41]} 28. Kd1 {[%emt 0:00:28]} d5 {[%emt 0:01:09]} 29. e5 {[%emt 0:01:01]} Bg4+ {[%emt 0:00:40]} 30. Be2 {[%emt 0:00:51]} Bf5 {[%emt 0:00:47]} 31. exf6+ {[%emt 0:01:15]} Kg8 {[%emt 0:00:10]} 32. Bd3 {[%emt 0:05:03]} Bg4+ {[%emt 0:00:23]} 33. Ke1 {[%emt 0:00:11]} Qd6 {[%emt 0:00:47]} (33... Qb4+ $1 $11 34. Kf1 Bd7) 34. Qe5 {[%emt 0:00:59]} Qb4+ {[%emt 0:01:04]} 35. Kf2 {[%emt 0:00:14]} Bd7 {[%emt 0:00:41]} 36. g3 {[%emt 0:03:41]} ({Weaker is} 36. Qxd5 Re8 $14) (36. Bxg6 $18 {is the precise move to win.} Re8 37. Bxf7+ Kxf7 38. Qxh5+ Kxf6 39. Qg5+ Kf7 40. Qxd5+ Kf8 41. Qc5+ Qxc5+ 42. Rxc5) 36... Re8 {[%emt 0:00:57] [#]} 37. Qc3 $1 {[%emt 0:00:00]} ({Jedoch nicht} 37. Qxd5 $2 Qe1+ 38. Kg2 Re3 $19) 37... Qa3 $2 {[%emt 0:00:55]} (37... Qxc3 {was called for.} 38. Rxc3 Ra8) 38. Qd4 $2 {[%emt 0:00:34]} (38. Qc7 $18 {and the rest is easy.} Bg4 {[#]} 39. Bxg6 $1 {[%mdl 512]} (39. Bxb5 Rc8 $17)) 38... Qa5 {[%emt 0:00:45] [#]} (38... Qd6 $16 {was called for.}) 39. Re2 {[%emt 0:02:48]} (39. b4 $1 $16 {[%cal Rb4a5]} Qa6 40. Rd2 (40. Qxd5 Qa7+ 41. Qc5 Qa6 $14)) 39... Be6 $2 {[%emt 0:00:11] [#]} (39... Rxe2+ $11 40. Bxe2 Qxa2) 40. f5 $1 {[%emt 0:00:00]} Bd7 {[%emt 0:00:00]} 41. fxg6 {[%emt 0:03:38]} Rxe2+ {[%emt 0:01:23]} 42. Bxe2 {[%emt 0:00:04]} Be6 {[%emt 0:00:13]} 43. Qe3 {[%emt 0:08:59]} Qxa2 {[%emt 0:00:38]} 44. gxf7+ {[%emt 0:04:19]} Bxf7 {[%emt 0:00:23]} 45. Qh6 {[%emt 0:01:53]} Qa7+ {[%emt 0:00:09]} 46. Kg2 {[%emt 0:00:06]} Be6 {[%emt 0:00:40]} 47. Qg6+ $2 {[%emt 0:00:22]} ({Günstiger ist} 47. Qg5+ $18 Kh8 48. Bxh5) 47... Kf8 {[%emt 0:00:10]} 48. Qh6+ $2 {[%emt 0:00:13]} (48. Bxh5 $18 {[%csl Gh5][%cal Rg6e8]} Qd7 49. Qh6+ Kg8 50. Bg6) 48... Kg8 {[%emt 0:00:06]} 49. Qg6+ {[%emt 0:00:16]} Kf8 {[%emt 0:00:11]} 50. Qxh5 {[%emt 0:00:16]} Qf7 {[%emt 0:00:38]} 51. Qh6+ {[%emt 0:02:00]} Kg8 {[%emt 0:00:14]} 52. Bxb5 {[%emt 0:03:47]} d4 {[%emt 0:00:12]} 53. Qg5+ $2 {[%emt 0:00:55]} ({White should play} 53. b4 $18 Qb7+ 54. Kf2) 53... Kh8 {[%emt 0:01:01] [#]} 54. Qh6+ $2 {[%emt 0:00:01]} (54. Bc4 $1 $18 Bxc4 {[#]} 55. Qg7+ $1 {[%mdl 512]} Qxg7 56. fxg7+ Kxg7 57. bxc4) 54... Kg8 {[%emt 0:00:07]} 55. Qg5+ {[%emt 0:04:20]} Kh8 {[%emt 0:00:08]} 56. Qg7+ {[%emt 0:01:32]} Qxg7 {[%emt 0:00:08]} 57. fxg7+ {[%emt 0:00:04]} Kxg7 {[%emt 0:00:05]} 58. Bc4 {[%emt 0:00:08]} Bg4 {[%emt 0:00:13]} 59. Kf2 {[%emt 0:00:47]} Kf6 {[%emt 0:00:11]} 60. Be2 {[%emt 0:02:47]} Bf5 {[%emt 0:00:36]} 61. Bf3 {[%emt 0:00:23]} Ke5 {[%emt 0:00:47]} 62. b4 {[%emt 0:00:59]} Kd6 {[%emt 0:00:13]} 63. Ke2 $18 {[%emt 0:02:46]} Kc7 {[%emt 0:00:15]} 64. Kd2 {[%emt 0:00:22]} Kb6 {[%emt 0:00:07]} 65. g4 {[%emt 0:00:28]} Bh7 {[%emt 0:00:07]} 66. h5 {[%emt 0:00:19]} Kb5 {[%emt 0:00:05]} 67. g5 {[%emt 0:00:04]} Kxb4 {[%emt 0:00:05]} 68. g6 {[%emt 0:00:03]} 1-0

[Event "FIDE WCCC U12 2018"]
[Site "Santiago de Compostela"]
[Date "2018.11.11"]
[Round "7"]
[White "Paduano, Claudio"]
[Black "He, Canzhou"]
[Result "1/2-1/2"]
[ECO "D87"]
[WhiteElo "2017"]
[BlackElo "1548"]
[Annotator "NA RC"]
[PlyCount "168"]
[EventDate "2018.11.04"]
[EventType "swiss"]
[EventCountry "ESP"]
[SourceTitle "playchess.com"]
[Source "ChessBase"]
[SourceQuality "1"]
[TimeControl "40/5400+30:1800+30"]

1. d4 Nf6 2. c4 g6 3. Nc3 d5 4. cxd5 Nxd5 5. e4 Nxc3 6. bxc3 Bg7 7. Bc4 O-O 8. Ne2 c5 9. O-O Nc6 10. Be3 Bg4 11. f3 cxd4 12. cxd4 Na5 13. Bxf7+ Rxf7 14. fxg4 Rxf1+ 15. Kxf1 Qd7 16. h3 {LiveBook: 9 Games} Nc4 {D88: Exchange Grünfeld: Classical Line: 10 Be3 cxd4 11 cxd4} 17. Qd3 b5 18. Bf2 (18. Kg1 Nxe3 19. Qxe3 Rc8 20. Kh1 Qe6 21. Ng1 Rc2 22. Nf3 Qc4 23. e5 Rxa2 24. Rxa2 Qxa2 {0-1 (50) Corrales Jimenez,F (2586)-Bacallao Alonso,Y (2438) Las Tunas 2009}) 18... Kh8 $146 (18... Rc8 $14) ({Predecessor:} 18... e6 19. Kg1 Rf8 20. a4 a6 21. axb5 axb5 22. g5 Kh8 23. Rb1 Ra8 24. Qb3 Nd2 25. Qxb5 Qxb5 26. Rxb5 Ra1+ 27. Kh2 Nf1+ 28. Kh1 Ng3+ 29. Kh2 Nf1+ {½-½ (29) Andreev,S (2130)-Filev,G (2305) Sofia 2004}) 19. a4 a6 20. axb5 Qxb5 21. Kg1 Rc8 22. Rc1 Nd6 23. Rxc8+ Nxc8 24. Qxb5 axb5 25. Be1 e5 26. dxe5 (26. d5 $16) 26... Bxe5 27. Bc3 ({Better is} 27. Kf2 $14) 27... Bxc3 28. Nxc3 b4 29. Nd5 b3 30. Kf2 Nb6 (30... b2 $5 31. Nc3 $8 Nd6 $11) 31. Nc3 Kg7 32. g5 b2 33. Ke2 Na4 34. Nb1 Kf7 35. Ke3 Ke6 36. Kd4 Nb6 37. Nd2 Nd7 38. Kc3 Ke5 39. Kxb2 Nc5 40. Kc2 Kf4 41. Nf3 Nxe4 42. h4 Ng3 43. Kd3 Nf5 44. Ke2 Kg3 45. Kd3 Nxh4 46. Ke4 Nxg2 47. Nd4 $2 (47. Ne5 $17 {only move.}) 47... Nf4 48. Nf3 Kg4 49. Ne5+ Kxg5 50. Nf3+ Kg4 51. Nh2+ Kg3 52. Nf1+ Kf2 53. Ne3 g5 54. Ng4+ Kg3 55. Nh6 Nh3 56. Kf5 Kh4 57. Kf6 Nf4 (57... Nf2 $17 58. Kg7 Ne4 59. Kxh7 Kh5) 58. Kg7 $1 Ne6+ 59. Kxh7 Kh5 60. Nf5 (60. Ng8 $1 $11 {remains equal.}) 60... g4 61. Ng3+ Kg5 ({Lieber} 61... Kh4 $17 62. Ne2 Kg5) 62. Ne4+ $2 {[#]} (62. Ne2 $15) 62... Kh4 $2 (62... Kf5 $1 {setzt Matt} 63. Ng3+ Kf4 64. Nf1 Nd4 65. Kg6 Nf5 66. Kf7 Ne3 67. Nd2 g3 68. Nb3 Nf5 69. Nc5 g2 70. Nd3+ Ke3 71. Nc5 g1=Q 72. Kf6 Nd4 73. Ne6 Qf2+ 74. Ke7 Qh4+ 75. Kf7 Qh5+ 76. Ke7 Qe5 77. Ke8 Qxe6+ 78. Kd8 Qf7 79. Kc8 Qe7 80. Kb8 Nb5 81. Kc8 Qc7#) 63. Kg6 {[#]} Nc5 $1 64. Nd6 Kh3 65. Nf5 Ne4 66. Ne3 (66. Nd4 $11 {keeps the balance.}) 66... g3 67. Kf5 Nd2 68. Nd5 Kg2 $17 (68... Kh2 $2 69. Nf4 $19) 69. Kg4 Nc4 70. Nf4+ Kh2 71. Kf3 Ne5+ 72. Ke4 Ng4 73. Kf3 Nh6 74. Ke2 Nf5 75. Kf3 Nd4+ 76. Ke4 Nb3 77. Kf3 Nd2+ 78. Ke2 Ne4 79. Kf1 Nf6 80. Ng2 Ne4 81. Ne3 Nf2 82. Ke2 Kh1 83. Kf3 Nd1 84. Kxg3 Nxe3 1/2-1/2

[Event "FIDE WCCC U12 2018"]
[Site "Santiago de Compostela"]
[Date "2018.11.11"]
[Round "7"]
[White "Sahakyan, Aleks"]
[Black "Milikow, Elie"]
[Result "0-1"]
[ECO "B31"]
[WhiteElo "1951"]
[BlackElo "2173"]
[Annotator "RC"]
[PlyCount "64"]
[EventDate "2018.11.04"]
[EventType "swiss"]
[EventCountry "ESP"]
[SourceTitle "playchess.com"]
[Source "ChessBase"]
[SourceQuality "1"]
[TimeControl "40/5400+30:1800+30"]

1. e4 {[%emt 0:00:00]} c5 {[%emt 0:00:00]} 2. Nf3 {[%emt 0:00:00]} Nc6 {[%emt 0:00:00]} 3. Bb5 {[%emt 0:00:00]} g6 {[%emt 0:00:00]} 4. Bxc6 {[%emt 0:00:00]} bxc6 {[%emt 0:00:00]} 5. O-O {[%emt 0:00:16]} Bg7 {[%emt 0:00:09]} 6. Re1 {[%emt 0:01:13]} Nh6 {[%emt 0:00:23]} 7. d3 {[%emt 0:06:28]} d6 {[%emt 0:04:09]} 8. h3 {[%emt 0:03:20]} O-O {[%emt 0:03:08]} 9. Nbd2 {[%emt 0:03:31]} f5 {[%emt 0:04:35]} 10. Nc4 {[%emt 0:02:33]} e5 {[%emt 0:15:18]} 11. Bd2 {[%emt 0:01:05]} Nf7 {[%emt 0:07:47]} 12. Ba5 {[%emt 0:03:14]} Qf6 {[%emt 0:05:14]} 13. c3 {[%emt 0:18:10]} Ba6 {[%emt 0:10:41]} 14. Ne3 {[%emt 0:12:16]} h5 {[%emt 0:06:42]} 15. Nc2 {[%emt 0:11:53]} g5 {[%emt 0:13:46]} 16. Nh2 {[%emt 0:08:09]} Nh6 {[%emt 0:05:58]} 17. f3 {[%emt 0:02:57]} g4 {[%emt 0:04:13]} 18. exf5 {[%emt 0:03:02]} gxh3 {[%emt 0:02:38]} 19. g4 {[%emt 0:00:50]} Nxf5 {[%emt 0:00:45]} 20. gxf5 {[%emt 0:03:10]} Qg5+ {[%emt 0:00:19]} 21. Ng4 {[%emt 0:00:11]} hxg4 {[%emt 0:00:57]} 22. fxg4 {[%emt 0:00:19]} Bxd3 {[%emt 0:02:01]} 23. Ne3 {[%emt 0:01:14]} Bxf5 {[%emt 0:00:41]} 24. Bc7 {[%emt 0:01:41]} h2+ {[%emt 0:01:11]} 25. Kh1 {[%emt 0:00:11]} Be4+ {[%emt 0:02:07]} 26. Ng2 {[%emt 0:00:06]} Bf3 {[%emt 0:00:27]} 27. Qb3+ {[%emt 0:00:30]} d5 {[%emt 0:01:22]} 28. Qa4 {[%emt 0:00:31]} Bxg2+ {[%emt 0:00:35]} 29. Kxg2 {[%emt 0:00:12]} h1=Q+ {[%emt 0:01:21]} 30. Rxh1 {[%emt 0:00:10]} Qd2+ {[%emt 0:00:00]} 31. Kh3 {[%emt 0:00:00]} Rf3+ {[%emt 0:00:00]} 32. Kh4 {[%emt 0:00:03]} Qh6# {[%emt 0:00:00]} 0-1